fUSD/lending_fUSD_20240419
["ID","MTS","AMOUNT","RATE_DAILY","PERIOD"]
[322956685,1713544248258,-876.46,0.00013698,2]
[322956686,1713544248269,-500.0,0.00013698,2]
[322956687,1713544248281,-394.58889884,0.00013698,2]
[322956688,1713544248290,-554.69952305,0.00013698,2]
[322956689,1713544248307,-909.18055416,0.00013698,2]
[322956690,1713544248336,-316.2120005,0.00013698,2]
[322956691,1713544248349,-822.82792229,0.00013698,2]
[322956692,1713544248359,-890.13,0.00013698,2]
[322956693,1713544248369,-711.78,0.00013698,2]
[322956694,1713544248380,-500.0,0.00013698,2]
[322956695,1713544248390,-986.67,0.00013698,2]
[322956696,1713544248401,-848.54,0.00013698,2]
[322956697,1713544248413,-1236.58,0.00013698,2]
[322956698,1713544248423,-500.0,0.00013698,2]
[322956699,1713544248436,-664.42,0.00013698,2]
[322956700,1713544248445,-500.0,0.00013698,2]
[322956701,1713544248455,-500.0,0.00013698,2]
[322956702,1713544248465,-500.0,0.00013698,2]
[322956703,1713544248475,-500.0,0.00013698,2]
[322956704,1713544248485,-500.0,0.00013698,2]
[322956705,1713544248494,-817.64,0.00013698,2]
[322956706,1713544248505,-500.0,0.00013698,2]
[322956707,1713544248515,-612.87,0.00013698,2]
[322956708,1713544248525,-500.0,0.00013698,2]
[322956709,1713544248535,-858.97,0.00013698,2]
[322956710,1713544248545,-500.0,0.00013698,2]
[322956711,1713544248554,-500.0,0.00013698,2]
[322956712,1713544248564,-500.0,0.00013698,2]
[322956713,1713544248573,-500.0,0.00013698,2]
[322956714,1713544248583,-561.16686062,0.00013698,2]
[322956715,1713544248594,-720.45,0.00013698,2]
[322956716,1713544248604,-557.14,0.00013698,2]
[322956717,1713544248614,-896.48,0.00013698,2]
[322956718,1713544248624,-813.57,0.00013698,2]
[322956719,1713544248634,-530.2,0.00013698,2]
[322956720,1713544248644,-641.09,0.00013698,2]
[322956721,1713544248654,-716.72,0.00013698,2]
[322956722,1713544248664,-2082.81,0.00013698,2]
[322956723,1713544248673,-1640.71,0.00013698,2]
[322956724,1713544248686,-500.0,0.00013698,2]
[322956725,1713544248696,-1411.29,0.00013698,2]
[322956726,1713544248706,-500.0,0.00013698,2]
[322956727,1713544248716,-577.74794162,0.00013698,2]
[322956728,1713544248726,-500.0,0.00013698,2]
[322956729,1713544248736,-766.52,0.00013698,2]
[322956730,1713544248745,-500.0,0.00013698,2]
[322956731,1713544248755,-500.0,0.00013698,2]
[322956732,1713544248764,-995.27,0.00013698,2]
[322956733,1713544248775,-1146.51,0.00013698,2]
[322956734,1713544248785,-500.0,0.00013698,2]
[322956735,1713544248795,-1496.02,0.00013698,2]
[322956736,1713544248806,-439.8792475,0.00013698,2]
[322956737,1713544248816,-500.0,0.00013698,2]
[322956738,1713544248826,-500.0,0.00013698,2]
[322956739,1713544248837,-500.0,0.00013698,2]
[322956740,1713544248847,-500.0,0.00013698,2]
[322956741,1713544248858,-515.08,0.00013698,2]
[322956742,1713544248870,-500.0,0.00013698,2]
[322956743,1713544248881,-500.0,0.00013698,2]
[322956744,1713544248893,-643.32,0.00013698,2]
[322956745,1713544248903,-500.0,0.00013698,2]
[322956746,1713544248913,-854.25,0.00013698,2]
[322956747,1713544248923,-500.0,0.00013698,2]
[322956748,1713544248936,-163.6418244,0.00013698,2]
[322956749,1713544248947,-664.18,0.00013698,2]
[322956750,1713544248957,-500.0,0.00013698,2]
[322956751,1713544248967,-763.55,0.00013698,2]
[322956752,1713544248977,-500.0,0.00013698,2]
[322956753,1713544248986,-556.75689784,0.00013698,2]
[322956754,1713544248995,-834.48,0.00013698,2]
[322956755,1713544249005,-500.0,0.00013698,2]
[322956756,1713544249014,-691.35,0.00013698,2]
[322956757,1713544249024,-500.0,0.00013698,2]
[322956758,1713544249033,-500.0,0.00013698,2]
[322956759,1713544249043,-763.91,0.00013698,2]
[322956760,1713544249052,-500.0,0.00013698,2]
[322956761,1713544249061,-1157.59,0.00013698,2]
[322956762,1713544249070,-502.63,0.00013698,2]
[322956763,1713544249079,-500.0,0.00013698,2]
[322956764,1713544249089,-500.0,0.00013698,2]
[322956765,1713544249098,-791.24,0.00013698,2]
[322956766,1713544249107,-614.48,0.00013698,2]
[322956767,1713544249116,-500.0,0.00013698,2]
[322956768,1713544249124,-500.0,0.00013698,2]
[322956769,1713544249135,-500.0,0.00013698,2]
[322956770,1713544249144,-500.0,0.00013698,2]
[322956771,1713544249154,-938.79,0.00013698,2]
[322956772,1713544249163,-649.59,0.00013698,2]
[322956773,1713544249172,-649.66,0.00013698,2]
[322956774,1713544249184,-500.0,0.00013698,2]
[322956775,1713544249193,-1615.5,0.00013698,2]
[322956776,1713544249203,-500.0,0.00013698,2]
[322956777,1713544249213,-500.0,0.00013698,2]
[322956778,1713544249222,-500.0,0.00013698,2]
[322956779,1713544249231,-569.21,0.00013698,2]
[322956780,1713544249240,-500.0,0.00013698,2]
[322956781,1713544249250,-519.48230598,0.00013698,2]
[322956782,1713544249258,-500.0,0.00013698,2]
[322956783,1713544249268,-835.31,0.00013698,2]
[322956784,1713544249277,-500.0,0.00013698,2]
[322956785,1713544249287,-500.0,0.00013698,2]
[322956786,1713544249297,-500.0,0.00013698,2]
[322956787,1713544249305,-762.21,0.00013698,2]
[322956788,1713544249316,-500.0,0.00013698,2]
[322956789,1713544249327,-933.73,0.00013698,2]
[322956790,1713544249340,-1091.0,0.00013698,2]
[322956791,1713544249352,-703.52,0.00013698,2]
[322956792,1713544249362,-192.35080641,0.00013698,2]
[322956793,1713544249372,-918.83,0.00013698,2]
[322956794,1713544249382,-500.0,0.00013698,2]
[322956795,1713544249391,-500.0,0.00013698,2]
[322956796,1713544249400,-500.0,0.00013698,2]
[322956797,1713544249411,-1486.56,0.00013698,2]
[322956798,1713544249421,-696.81,0.00013698,2]
[322956799,1713544249434,-500.0,0.00013698,2]
[322956800,1713544249444,-280.4816,0.00013698,2]
[322956801,1713544249454,-971.11,0.00013698,2]
[322956802,1713544249463,-752.11,0.00013698,2]
[322956803,1713544249472,-500.0,0.00013698,2]
[322956804,1713544249482,-743.71,0.00013698,2]
[322956805,1713544249491,-500.0,0.00013698,2]
[322956806,1713544249500,-500.0,0.00013698,2]
[322956807,1713544249510,-1401.38,0.00013698,2]
[322956808,1713544249519,-1431.37,0.00013698,2]
[322956809,1713544249529,-500.0,0.00013698,2]
[322956810,1713544249538,-548.84,0.00013698,2]
[322956811,1713544249548,-500.0,0.00013698,2]
[322956812,1713544249557,-500.0,0.00013698,2]
[322956813,1713544249567,-500.0,0.00013698,2]
[322956814,1713544249576,-500.0,0.00013698,2]
[322956815,1713544249585,-984.26,0.00013698,2]
[322956816,1713544249595,-876.28,0.00013698,2]
[322956817,1713544249604,-493.92559032,0.00013698,2]
[322956818,1713544249613,-500.0,0.00013698,2]
[322956819,1713544249623,-500.0,0.00013698,2]
[322956820,1713544249633,-500.0,0.00013698,2]
[322956821,1713544249643,-500.0,0.00013698,2]
[322956822,1713544249652,-500.0,0.00013698,2]
[322956823,1713544249662,-222.32494839,0.00013698,2]
[322956824,1713544249671,-1226.26,0.00013698,2]
[322956825,1713544249685,-613.15,0.00013698,2]
[322956826,1713544249694,-695.7,0.00013698,2]
[322956827,1713544249704,-1622.7,0.00013698,2]
[322956828,1713544249713,-1471.28,0.00013698,2]
[322956829,1713544249723,-960.61,0.00013698,2]
[322956830,1713544249733,-500.0,0.00013698,2]
[322956831,1713544249743,-500.0,0.00013698,2]
[322956832,1713544249754,-555.16868616,0.00013698,2]
[322956833,1713544249763,-503.22,0.00013698,2]
[322956834,1713544249773,-791.73,0.00013698,2]
[322956835,1713544249783,-500.0,0.00013698,2]
[322956836,1713544249793,-1058.4,0.00013698,2]
[322956837,1713544249804,-500.0,0.00013698,2]
[322956838,1713544249816,-694.75,0.00013698,2]
[322956839,1713544249826,-500.0,0.00013698,2]
[322956840,1713544249836,-1390.25,0.00013698,2]
[322956841,1713544249845,-500.0,0.00013698,2]
[322956842,1713544249855,-500.0,0.00013698,2]
[322956843,1713544249864,-500.0,0.00013698,2]
[322956844,1713544249874,-1065.49,0.00013698,2]
[322956845,1713544249883,-1896.9,0.00013698,2]
[322956846,1713544249893,-559.6,0.00013698,2]
[322956847,1713544249902,-500.0,0.00013698,2]
[322956848,1713544249913,-500.0,0.00013698,2]
[322956849,1713544249923,-1317.79,0.00013698,2]
[322956850,1713544249933,-914.09,0.00013698,2]
[322956851,1713544249944,-648.35212734,0.00013698,2]
[322956852,1713544249954,-500.0,0.00013698,2]
[322956853,1713544249964,-500.0,0.00013698,2]
[322956854,1713544249974,-773.53,0.00013698,2]
[322956855,1713544249983,-377.69033473,0.00013698,2]
[322956856,1713544249993,-686.58,0.00013698,2]
[322956857,1713544250002,-500.0,0.00013698,2]
[322956858,1713544250012,-738.74,0.00013698,2]
[322956859,1713544250022,-500.0,0.00013698,2]
[322956860,1713544250031,-500.0,0.00013698,2]
[322956861,1713544250041,-500.0,0.00013698,2]
[322956862,1713544250050,-1263.22,0.00013698,2]
[322956863,1713544250061,-500.0,0.00013698,2]
[322956864,1713544250071,-1341.87,0.00013698,2]
[322956865,1713544250080,-500.0,0.00013698,2]
[322956866,1713544250090,-500.0,0.00013698,2]
[322956867,1713544250100,-500.0,0.00013698,2]
[322956868,1713544250110,-743.58,0.00013698,2]
[322956869,1713544250119,-500.0,0.00013698,2]
[322956870,1713544250128,-561.82,0.00013698,2]
[322956871,1713544250138,-500.0,0.00013698,2]
[322956872,1713544250148,-500.0,0.00013698,2]
[322956873,1713544250158,-500.0,0.00013698,2]
[322956874,1713544250168,-500.0,0.00013698,2]
[322956875,1713544250428,-500.0,0.00013698,2]
[322956876,1713544250441,-500.0,0.00013698,2]
[322956877,1713544250452,-559.85,0.00013698,2]
[322956878,1713544250462,-530.13,0.00013698,2]
[322956879,1713544250472,-168.74290647,0.00013698,2]
[322956880,1713544250498,-331.25709353,0.00013698,2]
[322956881,1713544250508,-1151.58,0.00013698,2]
[322956882,1713544250518,-500.0,0.00013698,2]
[322956883,1713544250529,-221.42397019,0.00013698,2]
[322956884,1713544250549,-254.14770287,0.00013698,2]
[322956885,1713544250563,-395.80832694,0.00013698,2]
[322956886,1713544250574,-329.77167297,0.00013698,2]
[322956887,1713544250619,-170.22832703,0.00013698,2]
[322956888,1713544250630,-537.17,0.00013698,2]
[322956889,1713544250639,-2251.53,0.00013698,2]
[322956890,1713544250650,-944.62,0.00013698,2]
[322956891,1713544250660,-500.0,0.00013698,2]
[322956892,1713544250670,-602.93219103,0.00013698,2]
[322956893,1713544250683,-335.00591812,0.00013698,2]
[322956894,1713544250696,-684.74408188,0.00013698,2]
[322956895,1713544250706,-593.47995812,0.00013698,2]
[322956896,1713544250718,-267.54004188,0.00013698,2]
[322956897,1713544250728,-500.0,0.00013698,2]
[322956898,1713544250737,-199.98275817,0.00013698,2]
[322956899,1713544290824,150.0,0.00026741,120]
[322956900,1713544293553,7268.6457,0.00011182,2]
[322956901,1713544350973,150.0,0.00027854,120]
[322956902,1713544370902,-207.69492018,0.00013455,2]
[322956903,1713544370927,-709.08776493,0.00013455,2]
[322956904,1713544370952,-155.0,0.00013455,2]
[322956905,1713544370975,-155.27945723,0.00013455,2]
[322956906,1713544371000,-155.0,0.00013455,2]
[322956907,1713544371028,-155.16352534,0.00013455,2]
[322956908,1713544371052,-161.3283795,0.00013455,2]
[322956909,1713544371076,-2464.01890355,0.00013455,2]
[322956910,1713544371099,-155.0,0.00013455,2]
[322956911,1713544371123,-155.09984034,0.00013455,2]
[322956912,1713544371147,-295.73197132,0.00013455,2]
[322956913,1713544371171,-155.0,0.00013455,2]
[322956914,1713544371195,-155.0,0.00013455,2]
[322956915,1713544371219,-155.0,0.00013456,2]
[322956916,1713544371242,-10266.59523761,0.00013456,2]
[322956917,1713544384249,-155.0,0.00013455,2]
[322956918,1713544384271,-155.0,0.00013455,2]
[322956919,1713544384302,-12190.0,0.00013456,2]
[322956920,1713544657242,150.0,0.00010674,2]
[322956921,1713544657267,360.95,0.00010674,2]
[322956922,1713544811845,-150.0,0.00028244,120]
[322956923,1713544811871,-630.07960975,0.000283,120]
[322956924,1713544811894,-150.0,0.00028397,120]
[322956925,1713544811918,-150.0,0.00028502,120]
[322956926,1713544811988,-96.92039025,0.00029276,120]
[322956928,1713545118992,10000.0,0.000282,120]
[322956929,1713545154647,528.82,0.00010342,2]
[322956952,1713545431653,-207.69492018,0.00011869,2]
[322956953,1713545431662,-155.0,0.0001187,2]
[322956954,1713545431671,-1243.13554582,0.00011871,2]
[322956955,1713545431768,-846.19923555,0.00011871,2]
[322956956,1713545431782,-2976.3,0.00011871,2]
[322956957,1713545431823,-391.42908839,0.00011871,2]
[322956984,1713545437558,-298.49456835,0.00011868,2]
[322956985,1713545437572,-761.7580135,0.00011868,2]
[322956986,1713545437582,-86.72091774,0.00011871,2]
[322956987,1713545437591,-7338.41932417,0.00011872,2]
[322956988,1713545437602,-10515.63822003,0.00011873,2]
[322956989,1713545437611,-150.0,0.00011973,2]
[322956990,1713545437622,-2653.15,0.00011982,2]
[322956991,1713545437632,-250.0,0.00012064,2]
[322956992,1713545437641,-651.75688469,0.00012113,2]
[322956993,1713545437650,-405.1541012,0.00012114,2]
[322956994,1713545437659,-23890.0,0.00012115,2]
[322956995,1713545437669,-1816.8158,0.0001223,2]
[322957025,1713545438182,-165.84,0.0001226,2]
[322957031,1713545438218,-168.85,0.00012274,2]
[322957036,1713545438254,-6886.95,0.00012332,2]
[322957038,1713545438280,-1000.0,0.0001244,2]
[322957040,1713545438290,-3876.51,0.0001244,2]
[322957042,1713545438299,-150.99,0.0001244,2]
[322957044,1713545438309,-172.98,0.00012534,2]
[322957046,1713545438320,-1000.0,0.0001256,2]
[322957048,1713545438329,-178.42,0.00012598,2]
[322957050,1713545438339,-528.82,0.00012606,2]
[322957052,1713545438349,-164.5,0.00012666,2]
[322957054,1713545438358,-499.99,0.0001267,2]
[322957055,1713545438367,-2065.38647715,0.000131,4]
[322957058,1713545438378,-12771.85852,0.000131,4]
[322957060,1713545438389,-6117.64664064,0.000131,4]
[322957062,1713545438400,-215475.91043774,0.000131,4]
[322957068,1713545438456,-388.33639583,0.000131,4]
[322957071,1713545438474,-285.70748418,0.000131,4]
[322957074,1713545438485,-1316.71878285,0.000131,4]
[322957086,1713545438599,-374.06351889,0.000131,4]
[322957088,1713545438610,-10005.00034504,0.000131,4]
[322957092,1713545438636,-5214.39013985,0.000131,4]
[322957094,1713545438647,-943.31101398,0.000131,4]
[322957182,1713545439545,-912.34002185,0.000131,4]
[322957187,1713545439597,-1554.70179995,0.000131,4]
[322957188,1713545439682,-438768.59654709,0.000131,4]
[322957189,1713545439692,-874.30567563,0.00013157,2]
[322957190,1713545439705,-172.98,0.00013187,2]
[322957191,1713545439715,-1000.0,0.00013257,2]
[322957192,1713545439724,-192.7281,0.00013257,2]
[322957193,1713545439734,-420174.53915515,0.00013257,2]
[322957194,1713545439754,-1904.24751474,0.00013257,2]
[322957195,1713545439786,-4697.0377176,0.00013257,2]
[322957196,1713545439829,-696.92,0.00013257,2]
[322957197,1713545439841,-655.74756519,0.00013257,2]
[322957198,1713545439894,-387.68567418,0.00013257,2]
[322957199,1713545439905,-528.097667,0.00013257,2]
[322957210,1713545442763,-1966.89920091,0.00013257,2]
[322957211,1713545442775,-5972.60867431,0.00013257,2]
[322957212,1713545442823,-141664.02297838,0.00013257,2]
[322957213,1713545442876,-658.35,0.00013257,2]
[322957214,1713545442890,-184519.15755254,0.00013257,2]
[322957215,1713545442900,-331.632,0.00013257,2]
[322957216,1713545442909,-874.30567563,0.00013308,2]
[322957217,1713545442918,-39998.6679,0.00013357,2]
[322957218,1713545442928,-20326.35857642,0.00013357,2]
[322957219,1713545442939,-1037.17902075,0.00013357,2]
[322957220,1713545442951,-1204.17105637,0.00013357,2]
[322957221,1713545442962,-474.54926285,0.00013357,2]
[322957222,1713545442974,-3451.5393,0.00013357,2]
[322957223,1713545442986,-1226.99999763,0.00013357,2]
[322957224,1713545443043,-647.44,0.00013357,2]
[322957274,1713545446288,-251.91891363,0.00013357,2]
[322957275,1713545446299,-3067.79999999,0.00013357,2]
[322957276,1713545446310,-556.42300782,0.00013357,2]
[322957277,1713545446322,-823.29,0.00013357,2]
[322957278,1713545446363,-15911.69331384,0.00013357,2]
[322957279,1713545446375,-448.37069546,0.00013357,2]
[322957280,1713545446691,-585.22668101,0.00013357,2]
[322957281,1713545446775,-49987.04017423,0.00013357,2]
[322957282,1713545446786,-1000.0,0.00013357,2]
[322957283,1713545446796,-177.82,0.00013384,2]
[322957284,1713545446806,-500.0,0.00013425,2]
[322957285,1713545446816,-1000.0,0.00013455,2]
[322957286,1713545446827,-157.78253506,0.00013455,2]
[322957287,1713545446836,-1866.07720146,0.00013456,2]
[322957288,1713545446845,-23317.44939789,0.00013456,2]
[322957289,1713545446854,-541367.02199616,0.00013457,2]
[322957290,1713545446863,-874.30567563,0.00013459,2]
[322957291,1713545446873,-251.08783605,0.00013559,2]
[322957292,1713545446882,-1438.34127,0.0001356,2]
[322957293,1713545446891,-176.72738801,0.00013561,2]
[322957294,1713545446901,-19500.61089074,0.0001357,2]
[322957295,1713545446911,-171.25018801,0.00013598,2]
[322957296,1713545446921,-176.35323577,0.00013598,2]
[322957297,1713545446930,-206.0608428,0.00013598,2]
[322957298,1713545446939,-270.09229364,0.00013598,2]
[322957299,1713545446949,-1727.40201511,0.00013598,2]
[322957300,1713545446959,-1088.85747038,0.00013598,2]
[322957301,1713545446969,-10000.0,0.00013598,2]
[322957302,1713545446978,-6503.1778,0.00013598,2]
[322957303,1713545446988,-4322.3739,0.00013598,2]
[322957304,1713545446997,-2680.75537253,0.00013606,2]
[322957305,1713545447007,-331.15027798,0.00013674,2]
[322957306,1713545447016,-10355.71947778,0.00013682,2]
[322957307,1713545447031,-170.18899836,0.00013688,2]
[322957308,1713545447040,-1866.30633727,0.00013688,2]
[322957309,1713545447050,-155.0,0.00013689,2]
[322957310,1713545447061,-2050.22082379,0.00013689,2]
[322957311,1713545447072,-155.75757922,0.00013696,2]
[322957312,1713545447082,-192.46391051,0.00013696,2]
[322957313,1713545447092,-684.35779044,0.00013696,2]
[322957314,1713545447101,-423.00897991,0.00013697,2]
[322957315,1713545447110,-186.58813403,0.00013697,2]
[322957316,1713545447120,-2919.71390677,0.00013697,2]
[322957317,1713545447129,-1218.0,0.00013698,2]
[322957318,1713545447139,-12016.58822676,0.00013698,2]
[322957319,1713545447148,-500.0,0.00013698,2]
[322957320,1713545447158,-500.0,0.00013698,2]
[322957321,1713545447167,-500.0,0.00013698,2]
[322957322,1713545447176,-500.0,0.00013698,2]
[322957323,1713545447186,-500.0,0.00013698,2]
[322957324,1713545447195,-500.0,0.00013698,2]
[322957325,1713545447205,-500.0,0.00013698,2]
[322957326,1713545447214,-625.53862055,0.00013698,2]
[322957327,1713545447224,-500.0,0.00013698,2]
[322957328,1713545447235,-500.0,0.00013698,2]
[322957329,1713545447244,-500.0,0.00013698,2]
[322957330,1713545447255,-444.05092147,0.00013698,2]
[322957331,1713545447264,-741.29,0.00013698,2]
[322957332,1713545447274,-500.0,0.00013698,2]
[322957333,1713545447285,-500.0,0.00013698,2]
[322957334,1713545447296,-1101.86,0.00013698,2]
[322957335,1713545447306,-905.26,0.00013698,2]
[322957336,1713545447318,-555.74743255,0.00013698,2]
[322957337,1713545447330,-500.0,0.00013698,2]
[322957338,1713545447340,-573.85,0.00013698,2]
[322957339,1713545447353,-500.0,0.00013698,2]
[322957340,1713545447363,-2247.97,0.00013698,2]
[322957341,1713545447372,-1095.22,0.00013698,2]
[322957342,1713545447381,-1104.78,0.00013698,2]
[322957343,1713545447390,-500.0,0.00013698,2]
[322957344,1713545447399,-500.0,0.00013698,2]
[322957345,1713545447409,-521.52,0.00013698,2]
[322957346,1713545447418,-500.0,0.00013698,2]
[322957347,1713545447428,-898.43,0.00013698,2]
[322957348,1713545447437,-500.0,0.00013698,2]
[322957349,1713545447447,-500.0,0.00013698,2]
[322957350,1713545447456,-500.0,0.00013698,2]
[322957351,1713545447466,-1400.49,0.00013698,2]
[322957352,1713545447475,-500.0,0.00013698,2]
[322957353,1713545447484,-500.0,0.00013698,2]
[322957354,1713545447493,-500.0,0.00013698,2]
[322957355,1713545447503,-1769.72,0.00013698,2]
[322957356,1713545447512,-500.0,0.00013698,2]
[322957357,1713545447522,-500.0,0.00013698,2]
[322957358,1713545447531,-500.0,0.00013698,2]
[322957359,1713545447540,-500.0,0.00013698,2]
[322957360,1713545447549,-887.69,0.00013698,2]
[322957361,1713545447559,-500.0,0.00013698,2]
[322957362,1713545447569,-500.0,0.00013698,2]
[322957363,1713545447580,-2041.89,0.00013698,2]
[322957364,1713545447589,-967.86,0.00013698,2]
[322957365,1713545447599,-748.68,0.00013698,2]
[322957366,1713545447610,-1379.55,0.00013698,2]
[322957367,1713545447619,-158.79065668,0.00013698,2]
[322957368,1713545447629,-771.58,0.00013698,2]
[322957369,1713545447638,-516.04,0.00013698,2]
[322957370,1713545447648,-1098.63,0.00013698,2]
[322957371,1713545447658,-500.0,0.00013698,2]
[322957372,1713545447667,-1246.95,0.00013698,2]
[322957373,1713545447678,-500.0,0.00013698,2]
[322957374,1713545447688,-500.0,0.00013698,2]
[322957375,1713545447702,-1886.66,0.00013698,2]
[322957376,1713545447711,-500.0,0.00013698,2]
[322957377,1713545447720,-576.75,0.00013698,2]
[322957378,1713545447730,-419.78500916,0.00013698,2]
[322957379,1713545447740,-500.0,0.00013698,2]
[322957380,1713545447748,-1166.01,0.00013698,2]
[322957381,1713545447758,-659.16,0.00013698,2]
[322957382,1713545447768,-500.0,0.00013698,2]
[322957383,1713545447778,-507.44,0.00013698,2]
[322957384,1713545447787,-500.0,0.00013698,2]
[322957385,1713545447797,-589.79,0.00013698,2]
[322957386,1713545447806,-500.0,0.00013698,2]
[322957387,1713545447816,-740.58,0.00013698,2]
[322957388,1713545447826,-773.91,0.00013698,2]
[322957389,1713545447835,-556.81,0.00013698,2]
[322957390,1713545447843,-500.0,0.00013698,2]
[322957391,1713545447852,-1306.95,0.00013698,2]
[322957392,1713545447863,-500.0,0.00013698,2]
[322957393,1713545447873,-500.0,0.00013698,2]
[322957394,1713545447883,-540.40163671,0.00013698,2]
[322957395,1713545447892,-500.0,0.00013698,2]
[322957396,1713545447902,-791.53,0.00013698,2]
[322957397,1713545447912,-797.42,0.00013698,2]
[322957398,1713545447922,-500.0,0.00013698,2]
[322957399,1713545447932,-810.32,0.00013698,2]
[322957400,1713545447942,-500.0,0.00013698,2]
[322957401,1713545447953,-1731.95,0.00013698,2]
[322957402,1713545447963,-500.0,0.00013698,2]
[322957403,1713545447973,-1186.75,0.00013698,2]
[322957404,1713545447982,-500.0,0.00013698,2]
[322957405,1713545447991,-500.0,0.00013698,2]
[322957406,1713545448001,-500.0,0.00013698,2]
[322957407,1713545448011,-500.0,0.00013698,2]
[322957408,1713545448020,-505.94,0.00013698,2]
[322957409,1713545448030,-500.0,0.00013698,2]
[322957410,1713545448039,-2180.05,0.00013698,2]
[322957411,1713545448049,-508.8,0.00013698,2]
[322957412,1713545448058,-500.0,0.00013698,2]
[322957413,1713545448068,-500.0,0.00013698,2]
[322957414,1713545448080,-386.61677304,0.00013698,2]
[322957415,1713545448090,-500.0,0.00013698,2]
[322957416,1713545448099,-608.38,0.00013698,2]
[322957417,1713545448108,-540.13,0.00013698,2]
[322957418,1713545448117,-550.13,0.00013698,2]
[322957419,1713545448127,-500.0,0.00013698,2]
[322957420,1713545448137,-575.69465546,0.00013698,2]
[322957421,1713545448147,-607.71,0.00013698,2]
[322957422,1713545448159,-500.0,0.00013698,2]
[322957423,1713545448169,-541.04,0.00013698,2]
[322957424,1713545448179,-500.0,0.00013698,2]
[322957425,1713545448188,-500.0,0.00013698,2]
[322957426,1713545448197,-615.15,0.00013698,2]
[322957427,1713545448207,-506.29,0.00013698,2]
[322957428,1713545448217,-500.0,0.00013698,2]
[322957429,1713545448226,-798.7,0.00013698,2]
[322957430,1713545448235,-805.67,0.00013698,2]
[322957431,1713545448244,-1507.42,0.00013698,2]
[322957432,1713545448253,-500.0,0.00013698,2]
[322957433,1713545448263,-500.0,0.00013698,2]
[322957434,1713545448272,-500.0,0.00013698,2]
[322957435,1713545448282,-2156.94,0.00013698,2]
[322957436,1713545448291,-500.0,0.00013698,2]
[322957437,1713545448300,-500.0,0.00013698,2]
[322957438,1713545448310,-949.9,0.00013698,2]
[322957439,1713545448319,-1260.96,0.00013698,2]
[322957440,1713545448331,-715.29,0.00013698,2]
[322957441,1713545448341,-1438.25,0.00013698,2]
[322957442,1713545448350,-500.0,0.00013698,2]
[322957443,1713545448360,-571.52,0.00013698,2]
[322957444,1713545448369,-765.06,0.00013698,2]
[322957445,1713545448378,-500.0,0.00013698,2]
[322957446,1713545448388,-500.0,0.00013698,2]
[322957447,1713545448397,-644.11,0.00013698,2]
[322957448,1713545448407,-500.0,0.00013698,2]
[322957449,1713545448416,-500.0,0.00013698,2]
[322957450,1713545448426,-500.0,0.00013698,2]
[322957451,1713545448436,-625.62,0.00013698,2]
[322957452,1713545448446,-862.86,0.00013698,2]
[322957453,1713545448455,-500.0,0.00013698,2]
[322957454,1713545448464,-500.0,0.00013698,2]
[322957455,1713545448474,-500.0,0.00013698,2]
[322957456,1713545448483,-500.0,0.00013698,2]
[322957457,1713545448493,-1308.31,0.00013698,2]
[322957458,1713545448502,-500.0,0.00013698,2]
[322957459,1713545448512,-500.0,0.00013698,2]